Cogmind - Beta 13 @@@ ROGUE MODE // 2024.04.20 @ 13:54:23 Player: Bace Troncons Result: Destroyed by S-10 Pest with Light Assault Rifle Performance ------------- Evolutions (0) 0 Regions Visited (4) 800 Robots Destroyed (27) 135 Value Destroyed (671) 671 Prototype IDs (27) 540 Alien Tech Used (0) 0 Bonus (387) 387 TOTAL SCORE: 2533 Bonus ------- Follower Combat Kills 87 Aligned with FarCom 300 Cogmind --------- Core Integrity 0/250 Matter 280/300 Energy 220/250 System Corruption 2% Temperature Cool (0) Movement Walking (190) Ox1 Location -9/Mines Parts ------- > --- POWER (1) -------- Ion Engine > --- PROPULSION (2) --- Aluminum Leg (fused) Carbon-fiber Leg > --- UTILITY (2) ------ Large Storage Unit > --- WEAPON (2) ------- Beam Cannon Light Assault Rifle > --- INVENTORY (15) --- Ion Engine Light Nuclear Core Aluminum Leg Visual Processing Unit Sensor Array Signal Interpreter ECM Suite Cloak of Protection Bomb Drone Bay Grenade Launcher Hammer Peak State ------------ > --- POWER ------------ Ion Engine > --- PROPULSION ------- Aluminum Leg Aluminum Leg > --- UTILITY ---------- Large Storage Unit Cloak of Protection > --- WEAPON ----------- (None) > --- INVENTORY -------- Ion Engine Aluminum Leg Visual Processing Unit Sensor Array Signal Interpreter ECM Suite Bomb Drone Bay Beam Cannon Light Assault Rifle Grenade Launcher [Rating: 14] Favorites ----------- Power Ion Engine Engine Ion Engine Propulsion Aluminum Leg Treads Light Treads Leg Aluminum Leg Utility Large Storage Unit Device Cloak of Protection Storage Large Storage Unit Processor Signal Interpreter Weapon Assault Rifle Energy Gun Small Laser Energy Cannon Beam Cannon Ballistic Gun Assault Rifle Impact Weapon Hammer Build | -11 -10 -10 -10 -9 ------- Run | Yrd Mat Min Exi Min Slots Evolved . | . . . . . Power . | . . . . . Propulsion . | . . . . . Utility . | . . . . . Weapon . | . . . . . Parts Attached 32 | 6 17 3 2 4 Power 6 | 1 3 1 1 . Engine 6 | 1 3 1 1 . Core . | . . . . . Reactor . | . . . . . Propulsion 7 | 2 3 1 . 1 Treads 2 | 2 . . . . Leg 5 | . 3 1 . 1 Wheel . | . . . . . Hover . | . . . . . Flight . | . . . . . Utility 7 | 1 5 . 1 . Device 1 | . . . 1 . Storage 5 | 1 4 . . . Processor 1 | . 1 . . . Hackware . | . . . . . Protection . | . . . . . Artifact . | . . . . . Weapon 12 | 2 6 1 . 3 Energy Gun 1 | . 1 . . . Energy Cannon 2 | . 1 . . 1 Ballistic Gun 8 | 2 4 1 . 1 Ballistic Cannon . | . . . . . Launcher . | . . . . . Special Weapon . | . . . . . Impact Weapon 1 | . . . . 1 Slashing Weapon . | . . . . . Piercing Weapon . | . . . . . Special Melee Weapon . | . . . . . Unidentified Prototypes . | . . . . . Parts Lost 4 | . 2 2 . . Power . | . . . . . Propulsion 1 | . . 1 . . Utility . | . . . . . Weapon 3 | . 2 1 . . Highest Loss Streak 2 | . 1 2 . . To Critical Strikes . | . . . . . Average Slot Usage (%) 92 | . 97 98 86 59 Engine 14 | . 14 14 14 14 Treads 8 | . 17 . . . Leg 19 | . 9 27 28 28 Storage 14 | . 14 14 14 14 Processor 12 | . 13 14 11 . Energy Cannon 5 | . 1 14 7 . Ballistic Gun 16 | . 25 13 7 . Naked Turns . | . . . . . Heaviest Build 54 | 14 54 30 33 27 Greatest Support 40 | 40 40 20 20 25 Greatest Overweight (x) 2 | 2 2 2 1 1 Average Overweight (x) . | . . 1 1 1 Largest Inventory Capacity 25 | 8 25 15 15 15 Average Capacity 14 | 7 14 15 15 15 Most Carried 13 | 3 10 10 12 13 Average Carried 8 | 1 6 8 10 12 Final Capacity 15 | 8 15 15 15 15 Final Carried 12 | 3 7 10 12 12 Class Distribution -------------------- 78% | Mutant 21% | Scavenger-Mutant Dominant Class ---------------- Mutant | -10/Materials Mutant | -10/Mines Scavenger-Mutant | -10/Exiles Mutant | -9/Mines Resources | -11 -10 -10 -10 -9 ----------- Run | Yrd Mat Min Exi Min Matter Collected 876 | 188 546 86 . 56 Remotely . | . . . . . Salvage Created 785 | . 584 160 . 41 Parts 56 | . 40 15 . 1 Haulers Intercepted . | . . . . . Recyclers Shooed . | . . . . . Parts Field Recycled . | . . . . . Retrieved Matter . | . . . . . Parts Self-Destructed . | . . . . . Prevented . | . . . . . Kills | -11 -10 -10 -10 -9 ------- Run | Yrd Mat Min Exi Min Combat Hostiles Destroyed 22 | . 15 6 . 1 Melee 1 | . . . . 1 Guns 17 | . 15 2 . . Cannons 4 | . . 4 . . Classes Destroyed 5 | . 4 1 . . Worker 1 | . . 1 . . Operator 2 | . 2 . . . Watcher 2 | . 2 . . . Swarmer 7 | . 3 4 . . Grunt 15 | . 12 2 . 1 Best Kill Streak 3 | . 3 3 . 1 Combat Bots Only 3 | . 3 3 . 1 Max Kills in Single Turn 2 | . 1 2 . 1 Gunslinging . | . . . . . Exploded . | . . . . . Melee 1 | . . . . 1 Uniques/NPCs Destroyed . | . . . . . Combat | -11 -10 -10 -10 -9 -------- Run | Yrd Mat Min Exi Min Hostile Shots Fired 176 | . 111 52 . 13 Missed 49 | . 28 17 . 4 Damage Taken 1327 | . 910 331 . 86 Core 258 | . 189 39 . 30 Absorbed by Shields . | . . . . . Regen/Repaired (Parts) 69 | . 69 . . . Core Remaining (%) 100 | 100 . . . . Volleys Fired 75 | . 66 9 . . Largest 2 | . 2 2 . . Hottest 80 | . 80 80 . . Shots Fired 134 | . 114 18 2 . Gun 124 | . 113 9 2 . Cannon 10 | . 1 9 . . Launcher . | . . . . . Special . | . . . . . Kinetic 123 | . 112 9 2 . Thermal 11 | . 2 9 . . Explosive . | . . . . . Electromagnetic . | . . . . . Robot Hit Streak 20 | . 20 6 . . Robot Miss Streak 3 | . 3 1 . . Penetration Max . | . . . . . Secondary Targets 2 | . 2 . . . Max Gunslinging Chain 1 | . 1 . . . Shots Hit Robots 89 | . 76 11 . 2 Core Hits 40 | . 32 8 . . Critical Kills . | . . . . . Critical Parts Destroyed 2 | . 1 . . 1 Critical Strikes 2 | . 1 . . 1 Destroy 1 | . 1 . . . Smash 1 | . . . . 1 Melee Attacks 4 | . . . . 4 Impact 4 | . . . . 4 Slashing . | . . . . . Piercing . | . . . . . Sneak Attacks . | . . . . . Combat Hostiles . | . . . . . Follow-up Attacks . | . . . . . Damage Inflicted 1191 | . 961 172 . 58 Guns 987 | . 943 44 . . Cannons 140 | . 18 122 . . Explosions . | . . . . . Melee 58 | . . . . 58 Ramming 6 | . . 6 . . Kinetic 975 | . 931 44 . . Thermal 152 | . 30 122 . . Explosive . | . . . . . Electromagnetic . | . . . . . Impact 58 | . . . . 58 Slashing . | . . . . . Piercing . | . . . . . Highest Corruption 2 | . 1 2 2 2 Average Corruption 1 | . 1 1 2 2 Corruption Purged . | . . . . . Corruption Blocked . | . . . . . Effects 24 | . 4 2 16 2 Message Errors 8 | . 1 . 6 1 Matter Fused 4 | . 2 . 2 . Heat Flow Errors 1 | . . . 1 . Energy Discharges 1 | . . . 1 . Parts Fused 2 | . 1 . . 1 Data Loss (minor) 4 | . . . 4 . Data Loss (major) 1 | . . 1 . . Misfires 2 | . . . 2 . Alerts 1 | . . 1 . . Overload Shots . | . . . . . Overflow Damage 34 | . . . . 34 Projectiles . | . . . . . Explosions . | . . . . . Melee 34 | . . . . 34 Knockbacks . | . . . . . Impact . | . . . . . Kinetic . | . . . . . Secondary . | . . . . . Self-Inflicted Damage . | . . . . . Shots . | . . . . . Rammed . | . . . . . Targets Rammed 1 | . . 1 . . Kicked 1 | . . 1 . . Crushed . | . . . . . Highest Temperature 190 | . 21 130 190 . Average Temperature 41 | . 7 44 96 . Received Heat Transfer 552 | . 432 108 . 12 Siege Activations . | . . . . . Robots Corrupted . | . . . . . Combat Hostiles . | . . . . . Parts Fried . | . . . . . Impact Corruptions 1 | . . . . 1 Robots Melted . | . . . . . Combat Hostiles . | . . . . . Parts Melted 1 | . . 1 . . Heat Transferred 321 | . 62 259 . . Parts Sabotaged . | . . . . . Parts Stolen . | . . . . . Parts Stripped . | . . . . . Power Chain Reactions . | . . . . . Alert | -11 -10 -10 -10 -9 ------- Run | Yrd Mat Min Exi Min Peak Influence 177 | . 177 176 . 79 Initial 19 | . . 19 . . Average 62 | . 64 78 . 14 Maximum Alert Level . | . . . . . Low Security (%) 100 | 100 100 100 . 100 Level 1 . | . . . . . Level 2 . | . . . . . Level 3 . | . . . . . Level 4 . | . . . . . Level 5 . | . . . . . High Security . | . . . . . Max Security . | . . . . . Squads Dispatched 8 | . 6 1 . 1 Investigation 5 | . 4 1 . . Extermination . | . . . . . Reinforcement 2 | . 2 . . . Assault 1 | . . . . 1 Garrison . | . . . . . Intercept . | . . . . . Searches Triggered . | . . . . . Construction Impeded . | . . . . . Haulers Reinforced . | . . . . . Active Scanning Responses . | . . . . . Cargo Convoy Interrupts . | . . . . . Stealth | -11 -10 -10 -10 -9 --------- Run | Yrd Mat Min Exi Min Distress Signals . | . . . . . Communications Jammed . | . . . . . Distress Signals . | . . . . . Times Spotted 41 | . 24 10 . 7 Peak Tracking Total 6 | . 6 3 . 4 Tactical Retreats 3 | . 1 2 . . Traps | -11 -10 -10 -10 -9 ------- Run | Yrd Mat Min Exi Min Traps Triggered 4 | . 4 . . . Indirectly . | . . . . . Trap Hack Attempts . | . . . . . Triggered . | . . . . . Disarmed . | . . . . . Reprogrammed . | . . . . . Reused . | . . . . . Traps Extracted . | . . . . . Installed . | . . . . . Triggered . | . . . . . Machines | -11 -10 -10 -10 -9 ---------- Run | Yrd Mat Min Exi Min Machines Disabled . | . . . . . Max in Single Turn . | . . . . . Machines Repaired . | . . . . . Machines Dismantled . | . . . . . Machines Sabotaged . | . . . . . Overloaded Fab Kills . | . . . . . Hacking | -11 -10 -10 -10 -9 --------- Run | Yrd Mat Min Exi Min Machines Accessed 15 | . 7 3 5 . Terminals 7 | . 5 2 . . Fabricators . | . . . . . Repair Stations 1 | . 1 . . . Recycling Units 1 | . 1 . . . Scanalyzers . | . . . . . Garrison Access . | . . . . . Total Hacks 76 | . 16 10 50 . Successful 62 | . 7 5 50 . Failed 14 | . 9 5 . . Catastrophic 3 | . 3 . . . Database Lockouts . | . . . . . Manual 12 | . 1 7 4 . Terminals 19 | . 10 9 . . Fabricators . | . . . . . Repair Stations 4 | . 4 . . . Recycling Units 2 | . 2 . . . Scanalyzers . | . . . . . Garrison Access . | . . . . . Terminal Hacks 59 | . 4 5 50 . Record 49 | . . . 49 . Prototype ID Bank 4 | . 2 2 . . Open Door 1 | . . 1 . . Dispatch Records 1 | . . 1 . . Hauler Manifests 1 | . 1 . . . Zone Layout 2 | . 1 1 . . Derelict Proto ID Bank 1 | . . . 1 . Fabricator Hacks . | . . . . . Repair Station Hacks 2 | . 2 . . . Scan Component 1 | . 1 . . . Repair 1 | . 1 . . . Recycling Unit Hacks 1 | . 1 . . . Retrieve Components 1 | . 1 . . . Scanalyzer . | . . . . . Garrison Access Hacks . | . . . . . Unauthorized Hacks . | . . . . . Terminals . | . . . . . Fabricators . | . . . . . Repair Stations . | . . . . . Recycling Units . | . . . . . Scanalyzers . | . . . . . Garrison Access . | . . . . . Data Cores Recovered . | . . . . . Used . | . . . . . Hacking Detections 9 | . 7 2 . . Full Trace Events 3 | . 2 1 . . Feedback Events 2 | . 1 1 . . Corruption 2 | . 1 1 . . Feedback Blocked . | . . . . . Robot Schematics Acquired . | . . . . . Robots Built . | . . . . . Authchips . | . . . . . Time . | . . . . . Total Robot Build Rating . | . . . . . Part Schematics Acquired . | . . . . . Parts Built . | . . . . . Authchips . | . . . . . Time . | . . . . . Total Part Build Rating . | . . . . . Parts Repaired 1 | . 1 . . . Time 26 | . 26 . . . Parts Recycled . | . . . . . Recycled Matter . | . . . . . Retrieved Matter . | . . . . . Retrieved Components 2 | . 2 . . . Parts Scanalyzed . | . . . . . Part Schematics Acquired . | . . . . . Parts Damaged . | . . . . . Bothacking | -11 -10 -10 -10 -9 ------------ Run | Yrd Mat Min Exi Min Used RIF Installer . | . . . . . Robots Hacked . | . . . . . Non-combat . | . . . . . Combat . | . . . . . Robot Hacks Applied . | . . . . . Relay Couplers Released . | . . . . . Fabnet Peak Effective % . | . . . . . Robots Rewired . | . . . . . Allies Hacked . | . . . . . Hacks Repelled . | . . . . . Allies | -11 -10 -10 -10 -9 -------- Run | Yrd Mat Min Exi Min Total Allies 1 | . . . . 1 Largest Group 1 | . . . . 1 Highest-Rated Group 31 | . . . . 31 Highest-Rated Ally 31 | . . . . 31 Total Orders . | . . . . . Ally Attacks 9 | . . . . 9 Total Damage 189 | . . . . 189 Kills 4 | . . . . 4 Allies Corrupted . | . . . . . Allies Melted . | . . . . . Intel | -11 -10 -10 -10 -9 ------- Run | Yrd Mat Min Exi Min Robot Analysis Total . | . . . . . Derelict Logs Recovered 3 | . . 2 . 1 Drone Launches . | . . . . . Drone Recoveries . | . . . . . Exploration | -11 -10 -10 -10 -9 ------------- Run | Yrd Mat Min Exi Min Turns Passed 3655 | 73 1680 626 1072 204 Spaces Moved 1774 | 40 801 296 561 76 Core 3 | 3 . . . . Treads 593 | 37 556 . . . Legs 1178 | . 245 296 561 76 Wheels . | . . . . . Hover . | . . . . . Flight . | . . . . . Fastest Speed 50 | 50 160 190 190 190 Average Speed 183 | 155 175 192 190 190 Slowest Speed 260 | 160 260 260 190 190 Overloaded Moves . | . . . . . Propulsion Burnouts . | . . . . . Robots Hopped . | . . . . . Cave-ins Triggered . | . . . . . Exploration Rate (%) 50 | 4 87 60 83 16 Regions Visited 4 Branch Regions 3 Pre-discovered Areas 1 | . . . 1 . Known Exits Taken 3 | . 1 1 1 . Unknown Exits Taken 1 | 1 . . . . Scrap Searched 1 | . . 1 . . Spaces Dug . | . . . . . Terrain Destroyed . | . . . . . Melee . | . . . . . Projectile . | . . . . . AOE . | . . . . . Terrain Rammed . | . . . . . Walls Destroyed . | . . . . . Machines Disabled . | . . . . . Actions | -11 -10 -10 -10 -9 --------- Run | Yrd Mat Min Exi Min Total 2038 | 48 961 332 569 128 Wait 118 | . 54 21 1 42 Move 1770 | 39 800 295 560 76 Hop . | . . . . . Pick Up 17 | 3 8 3 1 2 Fast Attach 13 | 6 6 1 . . Attach 6 | . 3 1 . 2 Detach 7 | . 4 . 3 . Swap 13 | . 8 1 2 2 Drop 11 | . 10 . 1 . Fire 75 | . 66 9 . . Melee 4 | . . . . 4 Ram . | . . . . . Kick 1 | . . 1 . . Crush . | . . . . . Escape Stasis . | . . . . . Rewire 3 | . 2 . 1 . Trap . | . . . . . Miscellaneous . | . . . . . Route ------- -11/Scrapyard -10/Materials (discovered 4 exits: *Mat x3 / *Min) -10/Mines (discovered 3 exits: *Mat x2 / *Exi) -10/Exiles (discovered 2 exits: *Min x2) -9/Mines History --------- Turn | Location | Event 27 | -11/Scrapyard | Discovered new exit (range 15) 74 | -11/Scrapyard | Entered Materials 327 | -10/Materials | Build established: Mutant 364 | -10/Materials | Discovered new exit (range 8) 554 | -10/Materials | Discovered new exit (range 15) 588 | -10/Materials | Discovered new exit (range 6) 703 | -10/Materials | Identified exit to Mines 956 | -10/Materials | Discovered new exit (range 3) 1233 | -10/Materials | Core integrity fell below 50% 1457 | -10/Materials | Repaired Assault Rifle 1754 | -10/Materials | Entered Mines 1787 | -10/Mines | Met a Derelict bent on vengeance 1867 | -10/Mines | Learned Materials security intel 2076 | -10/Mines | Discovered new exit (range 9) 2093 | -10/Mines | Learned Materials stockpile data 2099 | -10/Mines | Core integrity fell below 20% 2132 | -10/Mines | Identified exit to Materials 2207 | -10/Mines | Found the Drone Emporium 2215 | -10/Mines | Found Prototype Device 2333 | -10/Mines | Discovered exit to Materials (range 5) 2373 | -10/Mines | Deemed a non-threat by the Exiles lab entrance 2373 | -10/Mines | Discovered new exit (range 5) 2378 | -10/Mines | Identified exit to Exiles 2380 | -10/Mines | Entered Exiles 2407 | -10/Exiles | Discovered new exit (range 15) 2432 | -10/Exiles | Identified exit to Mines 2475 | -10/Exiles | Met 8R-AWN 2503 | -10/Exiles | Build established: Scavenger-Mutant 2508 | -10/Exiles | Met EX-HEX 2606 | -10/Exiles | Met EX-DEC 2686 | -10/Exiles | Visited The Gauntlet 2900 | -10/Exiles | Discovered exit to Mines (range 10) 3010 | -10/Exiles | Learned location of Zion (-6) 3089 | -10/Exiles | Met EX-BIN 3135 | -10/Exiles | Aligned with FarCom system 3137 | -10/Exiles | Given EX-Vault access code 3215 | -10/Exiles | Opened EX-Vault 3260 | -10/Exiles | Build established: Mutant 3270 | -10/Exiles | Found Cloak of Protection 3294 | -10/Exiles | Exiles lab attacked by MAIN.C 3452 | -10/Exiles | Left Exiles lab with Cloak of Protection 3452 | -10/Exiles | Entered Mines 3453 | -9/Mines | Met a Derelict testing a Signal Generator 3471 | -9/Mines | Learned Materials terminal intel 3656 | -9/Mines | Destroyed by S-10 Pest with Light Assault Rifle Last Messages --------------- 03640_ G-34 Mercenary suffers critical hit (Smash). 03640_ Destroyed Heat Sink. 03640_ G-34 Mercenary system corrupted by crushing effect. 03640_ G-34 Mercenary destroyed. 03643_ R-06 Scavenger collects Recalibrator. 03647_ R-06 Scavenger collects Heat Sink. 03648_ Discarded Aluminum Leg. 03649_ R-06 Scavenger collects Particle Gun. 03650_ Acquired 10 matter. 03650_ R-06 Scavenger collects Corrupted Aluminum Leg. 03651_ C-30 ARC bursts open, deploying its payload. 03651_ S-10 Pest unfolds itself. 03653_ Acquired Lgt. Nuclear Core. 03654_ R-06 Scavenger collects Aluminum Leg. 03654_ R-06 Scavenger collects Lgt. Armor Plating. Map ----- +----------------------------------------------------+ | | | | | | | | | | | | | | | ?????????????????????????????????????????????????? | | ?????????????????????????????????????????????????? | | ?????????????????????????????????????????????????? | | ??????????###????????????????????????????????????? | | ???####??# ##???????????????????????????????????? | | ??## ### #???????????????????????????????????? | | ?## #?###???????????????????????????????? | | ?# #?## ####???????????????????????????? | | ?# ##?# ##??????????????????????????? | | ?## & #??# #??????????????????????????? | | ??## #???# #??????????????????????????? | | ???## ## ##???# ##?????????????????????????? | | ????# #####?????# ##????????????????????????? | | ????# #?????????## ######???????????????????? | | ????# #??????????### ##??????????????????? | | ????# #????????????### t #??????????????????? | | ????# #####??????????##! s ##?????????????????? | | ????# #??????????##% % ## ????????? | | ????##### #??????????# %r@ #?????????????? | | ????????# #??????#####[r % ##?????????????? | | ????????# #??????# %% s ##??????????????? | | ????????# #??????# #### z ##???????????????? | | ????????# #??????# #??## s ##t##????????????????? | | ????????# #???#### #???## ###? #?????????????????? | | ????????# #???# #????# #????#?????????????????? | | ????????# ##### ####????# #??????????????????????? | | ????????# #??????? #??????????????????????? | | ????????# #######???????#%#??????????????????????? | | ???????# ?????????????# #??????????????????????? | | ?????? ?????????????# #??????????????????????? | | ????? ?????????????? #??????????????????????? | | ????## ?????????????? ???????????????????????? | | ?????# #?????????????s???????????????????????? | | ????? ##????????????? ???????????????????????? | | ????# #???????????????????????????????????????? | | ????##? #????????????????????????????????????????? | | ??????##?????????????????????????????????????????? | | ?????????????????????????????????????????????????? | | ?????????????????????????????????????????????????? | | ?????????????????????????????????????????????????? | | ?????????????????????????????????????????????????? | | ?????????????????????????????????????????????????? | | ?????????????????????????????????????????????????? | +----------------------------------------------------+ Best States ------------- Heat Dissipation 25 Energy Generation 10 Energy Capacity 250 Matter Stores 300 Matter Capacity 300 Sight Range 16 Terrain Scan Density 10 Cloak Strength 5 Evasion (%) 40 Recoil Reduction 2 Item Schematics ----------------- None Robot Schematics ------------------ None Fabricated ------------ Nothing Alien Tech Used ----------------- None Achievements -------------- None Challenges ------------ None Game ------ Seed MissileInertialMediator Manual? 0 Play Time 00:41:57 Cumulative 32.1 hours Start 2024.04.20 @ 12:20:56 End 2024.04.20 @ 13:54:23 Sessions 1 Manual Loads 0 Difficulty Rogue Special Mode None Game No. 54 Rogue 54 Adventurer 0 Explorer 0 Win Type - Total 0 Types 0/0/0/0/0/0/0/0/0 Lore% 21 Gallery% 27 Achievement% 23 Wizard Run 0 Options --------- Layout 1 ASCII 0 Keyboard 1 Movement Numpad Keybinds 0 Fullscreen 1 Font 24/Smallcaps Map View 50x35 Zoom Use 0% Tactical HUD 1 Map Filters NONE Filters NONE Steam 1 RUN: e13327b9-9850-4c2d-bee4-df28998e40e3